Cogmind - Beta 15 @@@ ROGUE MODE // 2025.06.24 @ 15:06:14 Player: CL-1C0 Result: Destroyed by S-27 Virus with Autogun Performance ------------- Evolutions (3) 1500 Regions Visited (6) 1200 Robots Destroyed (90) 450 Value Destroyed (2595) 2595 Prototype IDs (0) 0 Alien Tech Used (0) 0 Bonus (423) 423 TOTAL SCORE: 6168 Bonus ------- High Alert Combat Kills 423 Cogmind --------- Core Integrity 0/700 Matter 144/300 Energy 99/100 System Corruption 1% Temperature Cool (0) Movement Core (50) Location -7/Storage Parts ------- > --- POWER (1) -------- (None) > --- PROPULSION (4) --- (None) > --- UTILITY (6) ------ Hacking Suite > --- WEAPON (2) ------- (None) > --- INVENTORY (5) ---- Huge Storage Unit Hardened Medium Armor Plating Gauss Rifle Precision Assault Rifle Improved Datajack Peak State ------------ > --- POWER ------------ Micro Nuclear Core > --- PROPULSION ------- Armored Treads Advanced Treads Advanced Treads Wheel > --- UTILITY ---------- Improved Heat Sink Large Storage Unit Improved Terrain Scan Processor Hardened Medium Armor Plating > --- WEAPON ----------- Flak Gun Flak Gun > --- INVENTORY -------- Wheel Wheel Huge Storage Unit Hacking Suite Hacking Suite Hacking Suite Hacking Suite System Shield System Shield Minigun Rocket Launcher Datajack Improved Datajack Maul [Rating: 35] Favorites ----------- Power Micro Nuclear Core Engine Improved Ion Engine Power Core Micro Nuclear Core Propulsion Light Treads Treads Light Treads Leg Aluminum Leg Wheel Wheel Utility Large Storage Unit Device Cooling System Storage Large Storage Unit Processor Improved Terrain Scan Processor Hackware Hacking Suite Protection Light Armor Plating Weapon Flak Gun Energy Gun Medium Laser Ballistic Gun Flak Gun Launcher Rocket Launcher Impact Weapon Maul Special Melee Weapon Improved Datajack Build | -11 -10 -9 -9 -8 -7 -7 ------- Run | Yrd Mat Mat Min Mat Fac Sto Slots Evolved 6 | . . 2 . 2 2 . Power . | . . . . . . . Propulsion 2 | . . 1 . 1 . . Utility 4 | . . 1 . 1 2 . Weapon . | . . . . . . . Parts Attached 54 | . 1 4 2 40 7 . Power 5 | . . 1 . 4 . . Engine 1 | . . 1 . . . . Core 4 | . . . . 4 . . Reactor . | . . . . . . . Propulsion 18 | . . 1 . 16 1 . Treads 11 | . . 1 . 9 1 . Leg 1 | . . . . 1 . . Wheel 6 | . . . . 6 . . Hover . | . . . . . . . Flight . | . . . . . . . Utility 19 | . 1 2 . 12 4 . Device 8 | . . 1 . 6 1 . Storage 1 | . 1 . . . . . Processor 2 | . . . . 2 . . Hackware 5 | . . . . 2 3 . Protection 3 | . . 1 . 2 . . Artifact . | . . . . . . . Weapon 12 | . . . 2 8 2 . Energy Gun 1 | . . . . 1 . . Energy Cannon . | . . . . . . . Ballistic Gun 8 | . . . 1 7 . . Ballistic Cannon . | . . . . . . . Launcher 1 | . . . 1 . . . Special Weapon . | . . . . . . . Impact Weapon 1 | . . . . . 1 . Slashing Weapon . | . . . . . . . Piercing Weapon . | . . . . . . . Special Melee Weapon 1 | . . . . . 1 . Unidentified Prototypes . | . . . . . . . Parts Lost 33 | . . . . 28 4 1 Power 2 | . . . . 2 . . Propulsion 14 | . . . . 13 1 . Utility 11 | . . . . 8 2 1 Weapon 6 | . . . . 5 1 . Highest Loss Streak 9 | . . . . 9 2 1 To Critical Strikes 1 | . . . . 1 . . Average Backups 11 | . 6 10 15 13 3 5 Power 1 | . 1 2 3 1 . . Propulsion 2 | . 4 4 6 1 . . Utility 3 | . . . 1 5 1 2 Weapon 3 | . 1 2 5 3 1 2 Tool/Special . | . . . . . . . Unused Backups 23 | . 6 . 2 11 . 4 Power 3 | . 1 . . 2 . . Propulsion 2 | . 2 . . . . . Utility 5 | . 1 . . 2 . 2 Weapon 12 | . 2 . 2 6 . 2 Tool/Special 1 | . . . . 1 . . Average Slot Usage (%) 88 | . 92 96 100 91 28 15 Engine 5 | . 14 11 11 . . . Core 3 | . . . . 7 . . Treads 16 | . . 11 11 24 1 . Leg 9 | . 28 22 22 . . . Wheel 3 | . . . . 7 . . Device 9 | . . 9 11 11 . . Storage 10 | . 21 16 11 8 . . Processor 3 | . . . . 7 . . Hackware 1 | . . . . . 21 15 Protection 4 | . . 4 11 4 . . Energy Gun 9 | . 28 22 15 . . . Ballistic Gun 8 | . . . 5 16 . . Peak Build Rating 35 | . 7 13 16 35 16 7 Average Rating 19 | . 6 11 14 27 11 6 On Entrance 8 | 6 6 7 13 16 1 7 Naked Turns 8 | . . . . 8 . . Heaviest Build 50 | 13 33 37 38 50 3 . Greatest Support 84 | 20 20 20 20 84 28 3 Greatest Overweight (x) 4 | . 1 1 1 4 . . Average Overweight (x) . | . . 1 1 1 . . Largest Inventory Capacity 15 | . 15 15 15 15 5 5 Average Capacity 13 | . 11 15 15 14 5 5 Most Carried 15 | . 6 15 15 15 5 5 Average Carried 12 | . 6 10 14 13 3 5 Final Capacity 15 | 8 15 15 15 5 5 5 Final Carried 15 | 6 6 15 15 5 5 5 Class Distribution -------------------- 81% | Mutant 9% | Scavenger-Mutant 8% | Hacker-Mutant Dominant Class ---------------- Mutant | -10/Materials Mutant | -9/Materials Mutant | -9/Mines Mutant | -8/Materials Hacker-Mutant | -7/Factory Hacker-Mutant | -7/Storage Resources | -11 -10 -9 -9 -8 -7 -7 ----------- Run | Yrd Mat Mat Min Mat Fac Sto Matter Collected 1969 | 186 24 40 44 1641 34 . Remotely . | . . . . . . . Salvage Created 2639 | . 88 332 32 2187 . . Parts 167 | . 6 17 . 144 . . Haulers Intercepted 6 | . . 1 . 5 . . Recyclers Shooed 2 | . . . . 2 . . Parts Field Recycled . | . . . . . . . Retrieved Matter . | . . . . . . . Parts Self-Destructed . | . . . . . . . Prevented . | . . . . . . . Kills | -11 -10 -9 -9 -8 -7 -7 ------- Run | Yrd Mat Mat Min Mat Fac Sto Combat Hostiles Destroyed 57 | . 2 5 2 48 . . Guns 48 | . 2 4 2 40 . . AOE 8 | . . . . 8 . . Classes Destroyed 16 | . 1 2 1 12 . . Worker 14 | . . . . 14 . . Builder 3 | . . . . 3 . . Tunneler 4 | . . . . 4 . . Hauler 6 | . . 1 . 5 . . Recycler 1 | . . . . 1 . . Operator 4 | . . . . 4 . . Watcher 3 | . . . . 3 . . Swarmer 9 | . . . . 9 . . Grunt 26 | . 2 1 . 23 . . Duelist 1 | . . . . 1 . . Sentry 9 | . . 4 . 5 . . Demolisher 1 | . . . . 1 . . Specialist 4 | . . . . 4 . . Hunter 4 | . . . . 4 . . Heavy 1 | . . . . 1 . . Assembled 2 | . . . 2 . . . Best Kill Streak 8 | . 2 1 1 8 . . Combat Bots Only 5 | . 2 1 1 5 . . Max Kills in Single Turn 4 | . 1 1 1 4 . . Gunslinging . | . . . . . . . Exploded 2 | . . . . 2 . . Melee . | . . . . . . . Uniques/NPCs Destroyed . | . . . . . . . Combat | -11 -10 -9 -9 -8 -7 -7 -------- Run | Yrd Mat Mat Min Mat Fac Sto Hostile Shots Fired 483 | . 9 39 3 302 114 16 Missed 129 | . 4 10 . 75 36 4 Hits 354 | . 5 29 3 227 78 12 Melee 7 | . . . 3 4 . . Projectile 347 | . 5 29 . 223 78 12 AOE 9 | . . . . 8 1 . Critical Strikes 15 | . . 3 . 11 1 . Damage Taken 5360 | . 66 399 92 3742 871 190 Core 1264 | . 16 29 . 504 537 178 Absorbed by Shields 126 | . . . . 126 . . Core Remaining (%) 73 | 100 93 . 92 8 . . Volleys Fired 227 | . 5 34 9 179 . . Largest 2 | . 2 2 2 2 . . Hottest 90 | . 90 90 83 90 . . Shots Fired 420 | . 9 62 15 334 . . Gun 406 | . 9 62 15 320 . . Cannon . | . . . . . . . Launcher 14 | . . . . 14 . . Special . | . . . . . . . Kinetic 319 | . . . 8 311 . . Thermal 87 | . 9 62 7 9 . . Explosive 14 | . . . . 14 . . Electromagnetic . | . . . . . . . Robot Hit Streak 15 | . 6 8 2 15 . . Robot Miss Streak 15 | . 1 7 5 15 . . Penetration Max . | . . . . . . . Secondary Targets 6 | . 1 . . 5 . . Max Gunslinging Chain 1 | . 1 . . 1 . . Shots Hit Robots 320 | . 7 38 3 258 14 . Core Hits 279 | . 5 14 2 257 1 . Critical Kills 2 | . . . . 2 . . Critical Parts Destroyed 3 | . . . . 1 2 . Critical Strikes 11 | . . 4 . 5 2 . Burn 6 | . . 4 . 2 . . Destroy 3 | . . . . 3 . . Smash 2 | . . . . . 2 . Melee Attacks 30 | . . . . . 30 . Impact 29 | . . . . . 29 . Slashing . | . . . . . . . Piercing . | . . . . . . . Sneak Attacks . | . . . . . . . Combat Hostiles . | . . . . . . . Follow-up Attacks . | . . . . . . . Damage Inflicted 6782 | . 100 455 58 5710 459 . Guns 4778 | . 100 455 58 4165 . . Cannons . | . . . . . . . Explosions 1519 | . . . . 1519 . . Melee 459 | . . . . . 459 . Ramming 26 | . . . . 26 . . Kinetic 4122 | . . . 45 4077 . . Thermal 656 | . 100 455 13 88 . . Explosive 1519 | . . . . 1519 . . Electromagnetic . | . . . . . . . Impact 459 | . . . . . 459 . Slashing . | . . . . . . . Piercing . | . . . . . . . Highest Corruption 2 | . . . . 2 1 1 Average Corruption 1 | . . . . 1 1 1 Corruption Purged 1 | . . . . 1 . . Corruption Blocked . | . . . . . . . Effects 15 | . . . . 15 . . Message Errors 5 | . . . . 5 . . Matter Fused 2 | . . . . 2 . . Heat Flow Errors 2 | . . . . 2 . . Energy Discharges 1 | . . . . 1 . . Data Loss (minor) 2 | . . . . 2 . . Data Loss (major) 1 | . . . . 1 . . Misfires 1 | . . . . 1 . . Weapon Failures 1 | . . . . 1 . . Overload Shots . | . . . . . . . Overflow Damage 198 | . . . . 111 87 . Projectiles . | . . . . . . . Explosions 111 | . . . . 111 . . Melee 87 | . . . . . 87 . Knockbacks 2 | . . . . . 2 . Impact 2 | . . . . . 2 . Kinetic . | . . . . . . . Secondary . | . . . . . . . Self-Inflicted Damage 194 | . . . . 194 . . Shots 4 | . . . . 4 . . Rammed 8 | . . . . 7 1 . Targets Rammed 8 | . . . . 7 1 . Kicked . | . . . . . . . Crushed . | . . . . . . . Highest Temperature 245 | . 156 21 . 245 . . Average Temperature 61 | . 75 13 . 61 . . Received Heat Transfer 1399 | . 36 189 . 1039 108 27 Siege Activations . | . . . . . . . Martial Activations . | . . . . . . . Shielding Activations . | . . . . . . . Robots Disrupted . | . . . . . . . Combat Hostiles . | . . . . . . . Robots Corrupted . | . . . . . . . Combat Hostiles . | . . . . . . . Parts Fried . | . . . . . . . Impact Corruptions 3 | . . . . . 3 . Robots Melted 1 | . . 1 . . . . Combat Hostiles 1 | . . 1 . . . . Parts Melted 7 | . . 7 . . . . Heat Transferred 2191 | . 248 1499 37 407 . . Parts Sabotaged . | . . . . . . . Parts Stolen . | . . . . . . . Parts Stripped . | . . . . . . . Power Chain Reactions . | . . . . . . . Alert | -11 -10 -9 -9 -8 -7 -7 ------- Run | Yrd Mat Mat Min Mat Fac Sto Maximum Alert Level 3 | . . . . 3 1 . Low Security (%) 63 | . 100 100 100 40 . 100 Level 1 11 | . . . . 8 100 . Level 2 19 | . . . . 39 . . Level 3 5 | . . . . 10 . . Level 4 . | . . . . . . . Level 5 . | . . . . . . . High Security . | . . . . . . . Max Security . | . . . . . . . Peak Influence 831 | . 50 68 3 831 375 107 Initial 375 | . . 16 2 . 375 107 Average 206 | . 5 14 . 367 312 100 Influence Increases 1948 | . 64 164 4 1658 52 6 Destroy 0b10 Robot/C 1100 | . 40 100 . 960 . . Destroy 0b10 Robot/NC 175 | . . 5 . 170 . . Destroy Leader 328 | . 10 52 . 266 . . Successful Hack 43 | . 14 7 . . 16 6 Select Force Hacks 30 | . . . . 30 . . Disable Machine 105 | . . . . 105 . . Destroy Structure 92 | . . . 4 82 6 . Partial Spotted 15 | . . . . . 15 . Lose Combat Pursuer 60 | . . . . 45 15 . Influence Decreases 1865 | . 24 197 11 833 640 160 Entered New Map 609 | . . 24 5 . 450 130 Time Decay 936 | . 24 173 6 563 150 20 Lost Part 320 | . . . . 270 40 10 Squads Dispatched 19 | . . 1 . 17 1 . Investigation 5 | . . . . 5 . . Extermination 1 | . . . . . 1 . Reinforcement 10 | . . 1 . 9 . . Assault 1 | . . . . 1 . . Garrison 2 | . . . . 2 . . Intercept . | . . . . . . . Searches Triggered . | . . . . . . . Construction Impeded 1 | . . . . 1 . . Haulers Reinforced . | . . . . . . . Active Scanning Responses . | . . . . . . . Cargo Convoy Interrupts . | . . . . . . . Stealth | -11 -10 -9 -9 -8 -7 -7 --------- Run | Yrd Mat Mat Min Mat Fac Sto Distress Signals 7 | . . . . 6 . 1 Communications Jammed . | . . . . . . . Distress Signals . | . . . . . . . Times Spotted 105 | . 4 9 2 77 5 8 Peak Tracking Total 8 | . 3 1 1 6 4 8 Tactical Retreats 4 | . . . . 3 1 . Traps | -11 -10 -9 -9 -8 -7 -7 ------- Run | Yrd Mat Mat Min Mat Fac Sto Traps Triggered 2 | . . . . 2 . . Indirectly . | . . . . . . . Trap Hack Attempts . | . . . . . . . Triggered . | . . . . . . . Disarmed . | . . . . . . . Reprogrammed . | . . . . . . . Reused . | . . . . . . . Traps Extracted . | . . . . . . . Installed . | . . . . . . . Triggered . | . . . . . . . Machines | -11 -10 -9 -9 -8 -7 -7 ---------- Run | Yrd Mat Mat Min Mat Fac Sto Machines Disabled 7 | . . . . 7 . . Max in Single Turn 3 | . . . . 3 . . Machines Repaired . | . . . . . . . Machines Dismantled . | . . . . . . . Machines Sabotaged . | . . . . . . . Overloaded Fab Kills . | . . . . . . . Hacking | -11 -10 -9 -9 -8 -7 -7 --------- Run | Yrd Mat Mat Min Mat Fac Sto Machines Accessed 18 | . 3 5 . 5 2 3 Terminals 17 | . 3 5 . 4 2 3 Fabricators . | . . . . . . . Repair Stations . | . . . . . . . Recycling Units 1 | . . . . 1 . . Scanalyzers . | . . . . . . . Garrison Access . | . . . . . . . Total Hacks 39 | . 8 9 . 15 2 5 Successful 10 | . 4 2 . 1 2 1 Failed 29 | . 4 7 . 14 . 4 Catastrophic 5 | . . 2 . 2 . 1 Database Lockouts . | . . . . . . . Manual 34 | . 6 9 . 12 2 5 Terminals 38 | . 8 9 . 14 2 5 Fabricators . | . . . . . . . Repair Stations . | . . . . . . . Recycling Units 1 | . . . . 1 . . Scanalyzers . | . . . . . . . Garrison Access . | . . . . . . . Terminal Hacks 7 | . 2 2 . . 2 1 Robot Analysis 1 | . 1 . . . . . Level Access Points 1 | . . 1 . . . . Branch Access Points 3 | . . 1 . . 1 1 Zone Layout 2 | . 1 . . . 1 . Fabricator Hacks . | . . . . . . . Repair Station Hacks . | . . . . . . . Recycling Unit Hacks . | . . . . . . . Scanalyzer . | . . . . . . . Garrison Access Hacks . | . . . . . . . Unauthorized Hacks 3 | . 2 . . 1 . . Terminals 2 | . 2 . . . . . Assimilate 1 | . 1 . . . . . Botnet 1 | . 1 . . . . . Fabricators . | . . . . . . . Repair Stations . | . . . . . . . Recycling Units 1 | . . . . 1 . . Tunnel 1 | . . . . 1 . . Scanalyzers . | . . . . . . . Garrison Access . | . . . . . . . Data Cores Recovered . | . . . . . . . Used . | . . . . . . . Hacking Detections 14 | . 1 5 . 4 1 3 Full Trace Events 4 | . . . . 4 . . Feedback Events . | . . . . . . . Feedback Blocked . | . . . . . . . Robot Schematics Acquired . | . . . . . . . Robots Built . | . . . . . . . Authchips . | . . . . . . . Time . | . . . . . . . Total Robot Build Rating . | . . . . . . . Part Schematics Acquired . | . . . . . . . Parts Built . | . . . . . . . Authchips . | . . . . . . . Time . | . . . . . . . Total Part Build Rating . | . . . . . . . Parts Repaired . | . . . . . . . Time . | . . . . . . . Parts Recycled . | . . . . . . . Recycled Matter . | . . . . . . . Retrieved Matter . | . . . . . . . Retrieved Components . | . . . . . . . Parts Scanalyzed . | . . . . . . . Part Schematics Acquired . | . . . . . . . Parts Damaged . | . . . . . . . Bothacking | -11 -10 -9 -9 -8 -7 -7 ------------ Run | Yrd Mat Mat Min Mat Fac Sto Used RIF Installer . | . . . . . . . Robots Hacked . | . . . . . . . Non-combat . | . . . . . . . Combat . | . . . . . . . Robot Hacks Applied . | . . . . . . . Relay Couplers Released . | . . . . . . . Fabnet Peak Effective % . | . . . . . . . Robots Rewired . | . . . . . . . Allies Hacked . | . . . . . . . Hacks Repelled . | . . . . . . . Allies | -11 -10 -9 -9 -8 -7 -7 -------- Run | Yrd Mat Mat Min Mat Fac Sto Total Allies 1 | . 1 . . . . . Largest Group 1 | . 1 1 1 1 . . Highest-Rated Group 10 | . 10 10 9 9 . . Highest-Rated Ally 10 | . 10 10 9 9 . . Total Orders 5 | . . . 2 3 . . STAY 3 | . . . 1 2 . . FOLLOW 2 | . . . 1 1 . . Ally Attacks . | . . . . . . . Total Damage . | . . . . . . . Kills . | . . . . . . . Allies Corrupted . | . . . . . . . Allies Melted . | . . . . . . . Intel | -11 -10 -9 -9 -8 -7 -7 ------- Run | Yrd Mat Mat Min Mat Fac Sto Active Infowar (turns) . | . . . . . . . Robot Analysis Total 1 | . 1 . . . . . Derelict Logs Recovered . | . . . . . . . Drone Launches . | . . . . . . . Drone Recoveries . | . . . . . . . Exploration | -11 -10 -9 -9 -8 -7 -7 ------------- Run | Yrd Mat Mat Min Mat Fac Sto Turns Passed 4278 | . 298 778 759 2078 318 47 Spaces Moved 2399 | 1 187 348 294 1081 395 93 Core 501 | . . . . 17 391 93 Treads 381 | . . 1 . 376 4 . Legs 833 | 1 187 347 294 4 . . Wheels 684 | . . . . 684 . . Hover . | . . . . . . . Flight . | . . . . . . . Fastest Speed 50 | 120 120 190 190 50 50 50 Average Speed 130 | 120 146 190 190 128 51 50 Slowest Speed 240 | 120 190 240 190 190 160 50 Overloaded Moves . | . . . . . . . Propulsion Burnouts . | . . . . . . . Robots Hopped . | . . . . . . . Potential Cave-ins . | . . . . . . . Cave-ins Triggered . | . . . . . . . Exploration Rate (%) 35 | 2 34 31 61 83 14 25 Regions Visited 6 Branch Regions 2 Pre-discovered Areas 1 | . . . . 1 . . Known Exits Taken 4 | . . 1 1 1 1 . Unknown Exits Taken 2 | 1 1 . . . . . Scrap Searched 1 | . . . 1 . . . Spaces Dug 6 | . . . . . 6 . Terrain Destroyed 122 | . . . 4 112 6 . Melee 6 | . . . . . 6 . Projectile 10 | . . . 4 6 . . AOE 106 | . . . . 106 . . Terrain Rammed . | . . . . . . . Walls Destroyed . | . . . . . . . Machines Disabled . | . . . . . . . Actions | -11 -10 -9 -9 -8 -7 -7 --------- Run | Yrd Mat Mat Min Mat Fac Sto Total 3070 | . 202 402 480 1442 451 93 Wait 284 | . 10 7 171 81 15 . Move 2393 | . 186 347 293 1080 394 93 Hop . | . . . . . . . Pick Up 36 | . . 9 2 21 4 . Fast Attach 27 | . 1 2 1 21 2 . Attach 21 | . . 1 . 16 4 . Detach . | . . . . . . . Swap 12 | . . 1 1 9 1 . Drop 32 | . . 1 3 28 . . Fire 227 | . 5 34 9 179 . . Melee 30 | . . . . . 30 . Ram 2 | . . . . 1 1 . Kick . | . . . . . . . Crush 6 | . . . . 6 . . Escape Stasis . | . . . . . . . Rewire . | . . . . . . . Trap . | . . . . . . . Miscellaneous . | . . . . . . . Route ------- -11/Scrapyard -10/Materials -9/Materials (discovered 5 exits: Mat x3 / *Min x2) -9/Mines -8/Materials (discovered 3 exits: *Fac x3) -7/Factory (discovered 4 exits: *Sto x2 / Low x2) -7/Storage (discovered 1 exit: Rec) History --------- Turn | Location | Event 1 | -11/Scrapyard | Discovered new exit (range 0) 1 | -11/Scrapyard | Entered Materials 138 | -10/Materials | Discovered new exit (range 4) 299 | -10/Materials | Entered another Materials area 299 | -9/Materials | Accompanied by 1 ally 299 | -9/Materials | Evolved 2 slots: Propulsion x1, Utility x1 320 | -9/Materials | Build established: Mutant 355 | -9/Materials | Identified exit to Mines 677 | -9/Materials | Identified exit to Materials 1077 | -9/Materials | Entered Mines 1077 | -9/Mines | Accompanied by 1 ally 1078 | -9/Mines | Assembled infested the area 1360 | -9/Mines | Received a Rocket Launcher from a helpful Derelict 1402 | -9/Mines | A weapon hastily lodged in a ceiling crevice suddenly fell to the ground 1813 | -9/Mines | Discovered exit to Materials (range 10) 1836 | -9/Mines | Entered Materials 1836 | -8/Materials | Accompanied by 1 ally 1836 | -8/Materials | Evolved 2 slots: Propulsion x1, Utility x1 2611 | -8/Materials | Lost 5 parts (3n2u) 2851 | -8/Materials | Discovered new exit (range 13) 2918 | -8/Materials | Identified exit to Factory 3144 | -8/Materials | Lost 4 parts (1p2n1u) 3480 | -8/Materials | Discovered exit to Factory (range 15) 3670 | -8/Materials | Core integrity fell below 50% 3768 | -8/Materials | Garrison activated, responded to threat 3803 | -8/Materials | Core integrity fell below 20% 3829 | -8/Materials | Lost 9 parts (1p4n1u3w) 3836 | -8/Materials | First assault squad dispatched 3906 | -8/Materials | Released all parts (6) 3910 | -8/Materials | Discovered exit to Factory (range 8) 3914 | -8/Materials | Entered Factory 3914 | -7/Factory | Evolved 2 slots: Utility x2 4056 | -7/Factory | Identified exit to Storage 4056 | -7/Factory | Identified exit to Lower Caves 4188 | -7/Factory | Core integrity fell below 50% 4198 | -7/Factory | Build established: Hacker-Mutant 4232 | -7/Factory | Entered Storage 4252 | -7/Storage | Core integrity fell below 20% 4260 | -7/Storage | Identified exit to Recycling 4279 | -7/Storage | Destroyed by S-27 Virus with Autogun Last Messages --------------- 04192_ P-60 Hacker knocked back. 04210_ Maul destroyed. 04210_ Slammed into P-60 Hacker. 04210_ Destabilizing: Core damaged (-21). 04215_ P-60 Hacker misfires. LOCATION=STORAGE GOAL=ESCAPE 04248_ Connecting with Terminal... 04255_ K-01 Serf collects debris. 04258_ Connecting with Terminal... >>Access(Branch) Found 1 branch access point: (58,8) Recycling Map updated. 04272_ W-25 Informer sends out distress signal. 04273_ C-30 ARC bursts open, deploying its payload. 04273_ S-27 Virus unfolds itself. 04273_ Hacking Suite destroyed. 04274_ Component Storage disabled. 04276_ K-01 Serf collects debris. Map ----- +----------------------------------------------------+ | ??????# ###############????????????????????????? | | ??????# # #????????????????????????? | | ??????# # ===#????????????????????????? | | ??????# # [ ===#????????????????????????? | | ??????# + == #????????????????????????? | | ?##""## # """ """ #????????????????????????? | | ?#T # # """T""" #????????????????????????? | | ??# + ############# ?????????????????????????? | | ??##### #??????????????????????????????????????? | | ??????# #??????????????????????????????????????? | | ??????# #??????????????????????????????????????? | | ??????# #??????????????????????????????????????? | | ??????# #??????????????????????????????????????? | | ??????# #??????????????####????????????????????? | | ??????+ #?????????????# #????????????????????? | | ??????# ###???????????# #????????????????????? | | ??????# T#???????????# #????????????????????? | | ??????# ""#???????????# #????????????????????? | | ??????# ###???????????# #????????????????????? | | ??????# #?????????????+ #????????????????????? | | ###???# ##????????????# #????????????????????? | | ??# T#????????????# #????????????????????? | | ?# ###########???# #????????????????????? | | # # #???# u #????????????????????? | | " """ / # """" #???# #????????????????????? | | " """ # # "??"" #???#@ +????????????????????? | | ? """ # # "???"" #???# #????????????????????? | | ? ?# / "????" #???#s #????????????????????? | | ? ??# # "???" #???#r #????????????????????? | | ####??##### """" #???#s #????????????????????? | | ??????????# #???#k #????????????????????? | | ??????????#########+#???# #????????????????????? | | ??????????????????# #####% #????????????????????? | | ??????????????????# s s #????????????????????? | | ??????????????????# #????????????????????? | | ??????????????????# #????????????????????? | | ??????????????????# #????????????????????? | | ??????????????????# "" #????????????????????? | | ??????????????????# """ #????????????????????? | | ??????????????????# """ #????????????????????? | | ??????????????????# """ #????????????????????? | | ?????????????????? """ !#????????????????????? | | ????????????????? #????????????????????? | | ???????????????? #????????????????????? | | ????????????????###### ######????????????????????? | | ?????????????????????? ??????????????????????????? | | ?????????????????????#???????????????????????????? | | ?????????????????????????????????????????????????? | | ?????????????????????????????????????????????????? | | ?????????????????????????????????????????????????? | +----------------------------------------------------+ Best States ------------- Heat Dissipation 59 Energy Generation 15 Energy Capacity 265 Matter Stores 300 Matter Capacity 300 Sight Range 16 Terrain Scan Density 110 Additional Mass Support 9 Armor Coverage 450 Evasion (%) 55 Recoil Reduction 4 Offensive Hacking 30 Item Schematics ----------------- None Robot Schematics ------------------ None Fabricated ------------ Nothing Repaired ---------- Nothing Alien Tech Used ----------------- None Achievements -------------- None Challenges ------------ None Game ------ Seed DefenseNuclearStripper Manual? 0 Play Time 00:33:09 Cumulative 560.2 hours Start 2025.06.24 @ 14:23:26 End 2025.06.24 @ 15:06:14 Sessions 1 Manual Loads 0 Difficulty Rogue Special Mode None Game No. 675 Rogue 675 Adventurer 0 Explorer 0 Win Type - Total 20 Types 14/0/5/1/0/0/0/0/0/0 Lore% 86 Gallery% 83 Achievement% 83 Wizard Run 0 Options --------- Layout 0 ASCII 0 Keyboard 0 Movement Numpad Keybinds 0 Fullscreen 1 Font 18/SmallcapsGlow Map View 76x50 Zoom Use 0% Tactical HUD 1 Map Filters NONE Filters NONE Steam 1 RUN: 5404adcd-33c7-4387-809e-613d535e5460